{"text_format":"3","workbook":"xlsx","n_sheets":1,"sheets":["תקציב משפחתי חודשי"],"not_rendered":{"charts":2,"defined_names":2},"read":"whole","date_system":"1900"}

{"sheet":"תקציב משפחתי חודשי","index":0,"n_rows":68,"n_cols":17,"rows_kept":68,"merged":[[0,1,0,7],[2,1,2,2],[2,6,2,7],[7,19,7,20],[8,6,8,7],[10,16,10,17],[13,19,13,20],[16,16,16,17],[18,1,18,4],[29,1,29,4],[36,1,36,4],[42,1,42,4],[54,1,54,4],[61,1,61,4]]}
[]
[]
[null,"עלות מתוכננת בפועל",null,"עלות כוללת בפועל","הפרש כולל",null,"הכנסה חודשית מתוכננת"]
[null,null,{"$f":"Housing[[#Totals],[עלות מתוכננת]]+Transportation[[#Totals],[עלות מתוכננת]]+Insurance[[#Totals],[עלות מתוכננת]]+Food[[#Totals],[עלות מתוכננת]]+Children[[#Totals],[עלות מתוכננת]]+Legal[[#Totals],[עלות מתוכננת]]+Savings[[#Totals],[עלות מתוכננת]]+Loans[[#Totals],[עלות מתוכננת]]+Entertainment[[#Totals],[עלות מתוכננת]]+Taxes[[#Totals],[עלות מתוכננת]]+PersonalCare[[#Totals],[עלות מתוכננת]]+Pets[[#Totals],[עלות מתוכננת]]+Gifts[[#Totals],[עלות מתוכננת]]","v":{"v":3941,"d":"₪3,941"}},{"$f":"Housing[[#Totals],[עלות בפועל]]+Transportation[[#Totals],[עלות בפועל]]+Insurance[[#Totals],[עלות בפועל]]+Food[[#Totals],[עלות בפועל]]+Children[[#Totals],[עלות בפועל]]+Legal[[#Totals],[עלות בפועל]]+Savings[[#Totals],[עלות בפועל]]+Loans[[#Totals],[עלות בפועל]]+Entertainment[[#Totals],[עלות בפועל]]+Taxes[[#Totals],[עלות בפועל]]+PersonalCare[[#Totals],[עלות בפועל]]+Pets[[#Totals],[עלות בפועל]]+Gifts[[#Totals],[עלות בפועל]]","v":{"v":4034,"d":"₪4,034"}},{"$f":"Housing[[#Totals],[הפרש]]+Transportation[[#Totals],[הפרש]]+Insurance[[#Totals],[הפרש]]+Food[[#Totals],[הפרש]]+Children[[#Totals],[הפרש]]+Legal[[#Totals],[הפרש]]+Savings[[#Totals],[הפרש]]+Loans[[#Totals],[הפרש]]+Entertainment[[#Totals],[הפרש]]+Taxes[[#Totals],[הפרש]]+PersonalCare[[#Totals],[הפרש]]+Pets[[#Totals],[הפרש]]+Gifts[[#Totals],[הפרש]]","v":{"v":-93,"d":"(₪93)"}},null,"הכנסה 1",{"v":1500,"d":"₪1,500"}]
[{"$nulls":6},"הכנסה 2",{"v":1200,"d":"₪1,200"}]
[null,"דיור","עלות מתוכננת","עלות בפועל","הפרש",null,"הכנסה נוספת",{"v":300,"d":"₪300"}]
[null,"שכירות או משכנתא שניה",{"v":0,"d":"₪0"},{"v":0,"d":"₪0"},{"$f":"Housing[עלות מתוכננת]-Housing[עלות בפועל]","v":{"v":0,"d":"₪0"}},null,"הכנסה חודשית כוללת",{"$f":"SUM(H4:H6)","v":{"v":3000,"d":"₪3,000"}}]
[null,"ציוד",{"v":0,"d":"₪0"},{"v":0,"d":"₪0"},{"$f":"Housing[עלות מתוכננת]-Housing[עלות בפועל]","v":{"v":0,"d":"₪0"}}]
[null,"אחר",{"v":0,"d":"₪0"},{"v":0,"d":"₪0"},{"$f":"Housing[עלות מתוכננת]-Housing[עלות בפועל]","v":{"v":0,"d":"₪0"}},null,"הכנסה חודשית בפועל",{"$nulls":3},"  "]
[null,"מים וביוב",{"v":8,"d":"₪8"},{"v":8,"d":"₪8"},{"$f":"Housing[עלות מתוכננת]-Housing[עלות בפועל]","v":{"v":0,"d":"₪0"}},null,"הכנסה 1",{"v":4000,"d":"₪4,000"}]
[null,"פינוי פסולת",{"v":10,"d":"₪10"},{"v":10,"d":"₪10"},{"$f":"Housing[עלות מתוכננת]-Housing[עלות בפועל]","v":{"v":0,"d":"₪0"}},null,"הכנסה 2",{"v":1200,"d":"₪1,200"}]
[null,"תחזוקה או תיקונים",{"v":23,"d":"₪23"},{"v":23,"d":"₪23"},{"$f":"Housing[עלות מתוכננת]-Housing[עלות בפועל]","v":{"v":0,"d":"₪0"}},null,"הכנסה נוספת",{"v":300,"d":"₪300"}]
[null,"גז",{"v":22,"d":"₪22"},{"v":35,"d":"₪35"},{"$f":"Housing[עלות מתוכננת]-Housing[עלות בפועל]","v":{"v":-13,"d":"-₪13"}},null,"הכנסה חודשית כוללת",{"$f":"SUM(H10:H12)","v":{"v":5500,"d":"₪5,500"}}]
[null,"כבלים",{"v":34,"d":"₪34"},{"v":34,"d":"₪34"},{"$f":"Housing[עלות מתוכננת]-Housing[עלות בפועל]","v":{"v":0,"d":"₪0"}}]
[null,"טלפון",{"v":120,"d":"₪120"},{"v":120,"d":"₪120"},{"$f":"Housing[עלות מתוכננת]-Housing[עלות בפועל]","v":{"v":0,"d":"₪0"}},null,"יתרה מתוכננת\n",{"$f":"SUM(H7-C4)","v":{"v":-941,"d":"(₪941)"}}]
[null,"חשמל",{"v":44,"d":"₪44"},{"v":44,"d":"₪44"},{"$f":"Housing[עלות מתוכננת]-Housing[עלות בפועל]","v":{"v":0,"d":"₪0"}},null,"יתרה בפועל",{"$f":"SUM(H13-D4)","v":{"v":1466,"d":"₪1,466"}}]
[null,"שכירות או משכנתא",{"v":1100,"d":"₪1,100"},{"v":1100,"d":"₪1,100"},{"$f":"Housing[עלות מתוכננת]-Housing[עלות בפועל]","v":{"v":0,"d":"₪0"}},null,"הפרש",{"$f":"SUM(H16-H15)","v":{"v":2407,"d":"₪2,407"}}]
[null,"סה\"כ",{"$f":"SUBTOTAL(109,Housing[עלות מתוכננת])","v":{"v":1361,"d":"₪1,361"}},{"$f":"SUBTOTAL(109,Housing[עלות בפועל])","v":{"v":1374,"d":"₪1,374"}},{"$f":"SUBTOTAL(109,Housing[הפרש])","v":{"v":-13,"d":"-₪13"}}]
[]
[null,"תחבורה","עלות מתוכננת","עלות בפועל","הפרש",null,"בידור","עלות מתוכננת","עלות בפועל","הפרש"]
[null,"תשלום על רכב 1",{"v":350,"d":"₪350"},{"v":350,"d":"₪350"},{"$f":"Transportation[עלות מתוכננת]-Transportation[עלות בפועל]","v":{"v":0,"d":"₪0"}},null,"וידאו/DVD",null,null,{"$f":"Entertainment[עלות מתוכננת]-Entertainment[עלות בפועל]","v":{"v":0,"d":"₪0"}}]
[null,"תשלום על רכב 2",{"v":200,"d":"₪200"},{"v":200,"d":"₪200"},{"$f":"Transportation[עלות מתוכננת]-Transportation[עלות בפועל]","v":{"v":0,"d":"₪0"}},null,"תקליטורים",null,null,{"$f":"Entertainment[עלות מתוכננת]-Entertainment[עלות בפועל]","v":{"v":0,"d":"₪0"}}]
[null,"תשלומי אוטובוסים/מוניות",{"v":100,"d":"₪100"},{"v":100,"d":"₪100"},{"$f":"Transportation[עלות מתוכננת]-Transportation[עלות בפועל]","v":{"v":0,"d":"₪0"}},null,"סרטים",{"v":50,"d":"₪50"},{"v":50,"d":"₪50"},{"$f":"Entertainment[עלות מתוכננת]-Entertainment[עלות בפועל]","v":{"v":0,"d":"₪0"}}]
[null,"דלק",{"v":60,"d":"₪60"},{"v":60,"d":"₪60"},{"$f":"Transportation[עלות מתוכננת]-Transportation[עלות בפועל]","v":{"v":0,"d":"₪0"}},null,"קונצרטים",{"v":300,"d":"₪300"},{"v":300,"d":"₪300"},{"$f":"Entertainment[עלות מתוכננת]-Entertainment[עלות בפועל]","v":{"v":0,"d":"₪0"}},{"$nulls":5},"דיור",1300]
[null,"ביטוח",{"v":50,"d":"₪50"},{"v":50,"d":"₪50"},{"$f":"Transportation[עלות מתוכננת]-Transportation[עלות בפועל]","v":{"v":0,"d":"₪0"}},null,"אירועי ספורט",null,null,{"$f":"Entertainment[עלות מתוכננת]-Entertainment[עלות בפועל]","v":{"v":0,"d":"₪0"}},{"$nulls":5},"תחבורה",800]
[null,"תחזוקה",{"v":20,"d":"₪20"},{"v":0,"d":"₪0"},{"$f":"Transportation[עלות מתוכננת]-Transportation[עלות בפועל]","v":{"v":20,"d":"₪20"}},null,"תיאטרון",{"v":100,"d":"₪100"},{"v":100,"d":"₪100"},{"$f":"Entertainment[עלות מתוכננת]-Entertainment[עלות בפועל]","v":{"v":0,"d":"₪0"}},{"$nulls":5},"ביטוח",500]
[null,"רישוי",null,null,{"$f":"Transportation[עלות מתוכננת]-Transportation[עלות בפועל]","v":{"v":0,"d":"₪0"}},null,"אחר",null,null,{"$f":"Entertainment[עלות מתוכננת]-Entertainment[עלות בפועל]","v":{"v":0,"d":"₪0"}},{"$nulls":5},"אוכל",700]
[null,"אחר",null,null,{"$f":"Transportation[עלות מתוכננת]-Transportation[עלות בפועל]","v":{"v":0,"d":"₪0"}},null,"סה\"כ",{"$f":"SUBTOTAL(109,Entertainment[עלות מתוכננת])","v":{"v":450,"d":"₪450"}},{"$f":"SUBTOTAL(109,Entertainment[עלות בפועל])","v":{"v":450,"d":"₪450"}},{"$f":"SUBTOTAL(109,Entertainment[הפרש])","v":{"v":0,"d":"₪0"}},{"$nulls":5},"ילדים",500]
[null,"סה\"כ",{"$f":"SUBTOTAL(109,Transportation[עלות מתוכננת])","v":{"v":780,"d":"₪780"}},{"$f":"SUBTOTAL(109,Transportation[עלות בפועל])","v":{"v":760,"d":"₪760"}},{"$f":"SUBTOTAL(109,Transportation[הפרש])","v":{"v":20,"d":"₪20"}},{"$nulls":10},"בידור",500]
[{"$nulls":6},"מתונות ותרומות","עלות מתוכננת","עלות בפועל","הפרש",{"$nulls":5},"מתנות",400]
[null,"ביטוח","עלות מתוכננת","עלות בפועל","הפרש",null,"צדקה 1",null,null,{"$f":"Gifts[עלות מתוכננת]-Gifts[עלות בפועל]","v":{"v":0,"d":"₪0"}},{"$nulls":5},"חיות מחמד",800]
[null,"בית",null,null,{"$f":"Insurance[עלות מתוכננת]-Insurance[עלות בפועל]","v":{"v":0,"d":"₪0"}},null,"צדקה 2",null,null,{"$f":"Gifts[עלות מתוכננת]-Gifts[עלות בפועל]","v":{"v":0,"d":"₪0"}},{"$nulls":5},"טיפוח אישי",200]
[null,"בריאות",{"v":50,"d":"₪50"},{"v":50,"d":"₪50"},{"$f":"Insurance[עלות מתוכננת]-Insurance[עלות בפועל]","v":{"v":0,"d":"₪0"}},null,"צדקה 3",null,null,{"$f":"Gifts[עלות מתוכננת]-Gifts[עלות בפועל]","v":{"v":0,"d":"₪0"}},{"$nulls":5},"חסכונות",500]
[null,"חיים",null,null,{"$f":"Insurance[עלות מתוכננת]-Insurance[עלות בפועל]","v":{"v":0,"d":"₪0"}},null,"סה\"כ",{"$f":"SUBTOTAL(109,Gifts[עלות מתוכננת])","v":{"v":0,"d":"₪0"}},{"$f":"SUBTOTAL(109,Gifts[עלות בפועל])","v":{"v":0,"d":"₪0"}},{"$f":"SUBTOTAL(109,Gifts[הפרש])","v":{"v":0,"d":"₪0"}}]
[null,"אחר",null,null,{"$f":"Insurance[עלות מתוכננת]-Insurance[עלות בפועל]","v":{"v":0,"d":"₪0"}}]
[null,"סה\"כ",{"$f":"SUBTOTAL(109,Insurance[עלות מתוכננת])","v":{"v":50,"d":"₪50"}},{"$f":"SUBTOTAL(109,Insurance[עלות בפועל])","v":{"v":50,"d":"₪50"}},{"$f":"SUBTOTAL(109,Insurance[הפרש])","v":{"v":0,"d":"₪0"}},null,"חיות מחמד","עלות מתוכננת","עלות בפועל","הפרש"]
[{"$nulls":6},"מזון",null,null,{"$f":"Pets[עלות מתוכננת]-Pets[עלות בפועל]","v":{"v":0,"d":"₪0"}}]
[null,"מזון","עלות מתוכננת","עלות בפועל","הפרש",null,"וטרינר",null,null,{"$f":"Pets[עלות מתוכננת]-Pets[עלות בפועל]","v":{"v":0,"d":"₪0"}}]
[null,"מצרכים",{"v":200,"d":"₪200"},{"v":300,"d":"₪300"},{"$f":"Food[עלות מתוכננת]-Food[עלות בפועל]","v":{"v":-100,"d":"-₪100"}},null,"טיפוח",null,null,{"$f":"Pets[עלות מתוכננת]-Pets[עלות בפועל]","v":{"v":0,"d":"₪0"}}]
[null,"מסעדות",{"v":500,"d":"₪500"},{"v":200,"d":"₪200"},{"$f":"Food[עלות מתוכננת]-Food[עלות בפועל]","v":{"v":300,"d":"₪300"}},null,"צעצועים",null,null,{"$f":"Pets[עלות מתוכננת]-Pets[עלות בפועל]","v":{"v":0,"d":"₪0"}}]
[null,"אחר",null,null,{"$f":"Food[עלות מתוכננת]-Food[עלות בפועל]","v":{"v":0,"d":"₪0"}},null,"אחר",null,null,{"$f":"Pets[עלות מתוכננת]-Pets[עלות בפועל]","v":{"v":0,"d":"₪0"}}]
[null,"סה\"כ",{"$f":"SUBTOTAL(109,Food[עלות מתוכננת])","v":{"v":700,"d":"₪700"}},{"$f":"SUBTOTAL(109,Food[עלות בפועל])","v":{"v":500,"d":"₪500"}},{"$f":"SUBTOTAL(109,Food[הפרש])","v":{"v":200,"d":"₪200"}},null,"סה\"כ",{"$f":"SUBTOTAL(109,Pets[עלות מתוכננת])","v":{"v":0,"d":"₪0"}},{"$f":"SUBTOTAL(109,Pets[עלות בפועל])","v":{"v":0,"d":"₪0"}},{"$f":"SUBTOTAL(109,Pets[הפרש])","v":{"v":0,"d":"₪0"}}]
[]
[null,"ילדים","עלות מתוכננת","עלות בפועל","הפרש",null,"טיפוח אישי","עלות מתוכננת","עלות בפועל","הפרש"]
[null,"טיפול רפואי",null,null,{"$f":"Children[עלות מתוכננת]-Children[עלות בפועל]","v":{"v":0,"d":"₪0"}},null,"טיפול רפואי",null,null,{"$f":"PersonalCare[עלות מתוכננת]-PersonalCare[עלות בפועל]","v":{"v":0,"d":"₪0"}}]
[null,"בגדים",{"v":200,"d":"₪200"},{"v":200,"d":"₪200"},{"$f":"Children[עלות מתוכננת]-Children[עלות בפועל]","v":{"v":0,"d":"₪0"}},null,"שיער/ציפורניים",null,null,{"$f":"PersonalCare[עלות מתוכננת]-PersonalCare[עלות בפועל]","v":{"v":0,"d":"₪0"}}]
[null,"שכר לימוד",null,null,{"$f":"Children[עלות מתוכננת]-Children[עלות בפועל]","v":{"v":0,"d":"₪0"}},null,"בגדים",{"v":100,"d":"₪100"},{"v":400,"d":"₪400"},{"$f":"PersonalCare[עלות מתוכננת]-PersonalCare[עלות בפועל]","v":{"v":-300,"d":"-₪300"}}]
[null,"ציוד לבית ספר",{"v":200,"d":"₪200"},{"v":200,"d":"₪200"},{"$f":"Children[עלות מתוכננת]-Children[עלות בפועל]","v":{"v":0,"d":"₪0"}},null,"ניקוי יבש",null,null,{"$f":"PersonalCare[עלות מתוכננת]-PersonalCare[עלות בפועל]","v":{"v":0,"d":"₪0"}}]
[null,"דמי ארגון",null,null,{"$f":"Children[עלות מתוכננת]-Children[עלות בפועל]","v":{"v":0,"d":"₪0"}},null,"מועדון בריאות",null,null,{"$f":"PersonalCare[עלות מתוכננת]-PersonalCare[עלות בפועל]","v":{"v":0,"d":"₪0"}}]
[null,"כסף לארוחות צהריים",{"v":100,"d":"₪100"},{"v":100,"d":"₪100"},{"$f":"Children[עלות מתוכננת]-Children[עלות בפועל]","v":{"v":0,"d":"₪0"}},null,"דמי ארגון",null,null,{"$f":"PersonalCare[עלות מתוכננת]-PersonalCare[עלות בפועל]","v":{"v":0,"d":"₪0"}}]
[null,"מטפלים",null,null,{"$f":"Children[עלות מתוכננת]-Children[עלות בפועל]","v":{"v":0,"d":"₪0"}},null,"אחר",null,null,{"$f":"PersonalCare[עלות מתוכננת]-PersonalCare[עלות בפועל]","v":{"v":0,"d":"₪0"}}]
[null,"צעצועים/משחקים",null,null,{"$f":"Children[עלות מתוכננת]-Children[עלות בפועל]","v":{"v":0,"d":"₪0"}},null,"סה\"כ",{"$f":"SUBTOTAL(109,PersonalCare[עלות מתוכננת])","v":{"v":100,"d":"₪100"}},{"$f":"SUBTOTAL(109,PersonalCare[עלות בפועל])","v":{"v":400,"d":"₪400"}},{"$f":"SUBTOTAL(109,PersonalCare[הפרש])","v":{"v":-300,"d":"(₪300)"}}]
[null,"אחר",null,null,{"$f":"Children[עלות מתוכננת]-Children[עלות בפועל]","v":{"v":0,"d":"₪0"}}]
[null,"סה\"כ",{"$f":"SUBTOTAL(109,Children[עלות מתוכננת])","v":{"v":500,"d":"₪500"}},{"$f":"SUBTOTAL(109,Children[עלות בפועל])","v":{"v":500,"d":"₪500"}},{"$f":"SUBTOTAL(109,Children[הפרש])","v":{"v":0,"d":"₪0"}},null,"הלוואות","עלות מתוכננת","עלות בפועל","הפרש"]
[{"$nulls":6},"אישי",null,null,{"$f":"Loans[עלות מתוכננת]-Loans[עלות בפועל]","v":{"v":0,"d":"₪0"}}]
[null,"משפטי","עלות מתוכננת","עלות בפועל","הפרש",null,"סטודנט",null,null,{"$f":"Loans[עלות מתוכננת]-Loans[עלות בפועל]","v":{"v":0,"d":"₪0"}}]
[null,"עורכי דין",null,null,{"$f":"Legal[עלות מתוכננת]-Legal[עלות בפועל]","v":{"v":0,"d":"₪0"}},null,"כרטיס אשראי",null,null,{"$f":"Loans[עלות מתוכננת]-Loans[עלות בפועל]","v":{"v":0,"d":"₪0"}}]
[null,"מזונות",null,null,{"$f":"Legal[עלות מתוכננת]-Legal[עלות בפועל]","v":{"v":0,"d":"₪0"}},null,"כרטיס אשראי",null,null,{"$f":"Loans[עלות מתוכננת]-Loans[עלות בפועל]","v":{"v":0,"d":"₪0"}}]
[null,"תשלומים",null,null,{"$f":"Legal[עלות מתוכננת]-Legal[עלות בפועל]","v":{"v":0,"d":"₪0"}},null,"כרטיס אשראי",null,null,{"$f":"Loans[עלות מתוכננת]-Loans[עלות בפועל]","v":{"v":0,"d":"₪0"}}]
[null,"אחר",null,null,{"$f":"Legal[עלות מתוכננת]-Legal[עלות בפועל]","v":{"v":0,"d":"₪0"}},null,"אחר",null,null,{"$f":"Loans[עלות מתוכננת]-Loans[עלות בפועל]","v":{"v":0,"d":"₪0"}}]
[null,"סה\"כ",{"$f":"SUBTOTAL(109,Legal[עלות מתוכננת])","v":{"v":0,"d":"₪0"}},{"$f":"SUBTOTAL(109,Legal[עלות בפועל])","v":{"v":0,"d":"₪0"}},{"$f":"SUBTOTAL(109,Legal[הפרש])","v":{"v":0,"d":"₪0"}},null,"סה\"כ",{"$f":"SUBTOTAL(109,Loans[עלות מתוכננת])","v":{"v":0,"d":"₪0"}},{"$f":"SUBTOTAL(109,Loans[עלות בפועל])","v":{"v":0,"d":"₪0"}},{"$f":"SUBTOTAL(109,Loans[הפרש])","v":{"v":0,"d":"₪0"}}]
[]
[null,"חסכונות/השקעות","עלות מתוכננת","עלות בפועל","הפרש",null,"מסים","עלות מתוכננת","עלות בפועל","הפרש"]
[null,"פנסיה",null,null,{"$f":"Savings[עלות מתוכננת]-Savings[עלות בפועל]","v":{"v":0,"d":"₪0"}},null,"ארצי",null,null,{"$f":"Taxes[עלות מתוכננת]-Taxes[עלות בפועל]","v":{"v":0,"d":"₪0"}}]
[null,"חשבון השקעות",null,null,{"$f":"Savings[עלות מתוכננת]-Savings[עלות בפועל]","v":{"v":0,"d":"₪0"}},null,"עירוני",null,null,{"$f":"Taxes[עלות מתוכננת]-Taxes[עלות בפועל]","v":{"v":0,"d":"₪0"}}]
[null,"אוניברסיטה",null,null,{"$f":"Savings[עלות מתוכננת]-Savings[עלות בפועל]","v":{"v":0,"d":"₪0"}},null,"ועד בית",null,null,{"$f":"Taxes[עלות מתוכננת]-Taxes[עלות בפועל]","v":{"v":0,"d":"₪0"}}]
[null,"אחר",null,null,{"$f":"Savings[עלות מתוכננת]-Savings[עלות בפועל]","v":{"v":0,"d":"₪0"}},null,"אחר",null,null,{"$f":"Taxes[עלות מתוכננת]-Taxes[עלות בפועל]","v":{"v":0,"d":"₪0"}}]
[null,"סה\"כ",{"$f":"SUBTOTAL(109,Savings[עלות מתוכננת])","v":{"v":0,"d":"₪0"}},{"$f":"SUBTOTAL(109,Savings[עלות בפועל])","v":{"v":0,"d":"₪0"}},{"$f":"SUBTOTAL(109,Savings[הפרש])","v":{"v":0,"d":"₪0"}},null,"סה\"כ",{"$f":"SUBTOTAL(109,Taxes[עלות מתוכננת])","v":{"v":0,"d":"₪0"}},{"$f":"SUBTOTAL(109,Taxes[עלות בפועל])","v":{"v":0,"d":"₪0"}},{"$f":"SUBTOTAL(109,Taxes[הפרש])","v":{"v":0,"d":"₪0"}}]